bitfinex/quotes_ETHUSD_20241116
["timestamp","ask_amount","ask_price","bid_price","bid_amount"]
[1731749813164,6.85182724,3117.6,3117.5,41.91795757]
[1731749813336,6.85182724,3117.6,3117.5,44.81289508]
[1731749813540,7.40682724,3117.6,3117.5,44.81289508]
[1731749814935,7.40682724,3117.6,3117.5,44.82289508]
[1731749815770,7.96182724,3117.6,3117.5,44.82289508]
[1731749817872,8.51682724,3117.6,3117.5,44.98322751]
[1731749818176,8.51682724,3117.6,3117.5,45.15348294]
[1731749818536,7.79472436,3117.6,3117.5,45.15348294]
[1731749818739,7.79472436,3117.6,3117.5,47.9240895]
[1731749818945,7.79472436,3117.6,3117.5,51.2990895]
[1731749819289,0.555,3118.2,3118.1,6.75708]
[1731749819434,0.555,3118.2,3118.1,6.98146682]
[1731749819843,1.11,3118.2,3118.1,0.71025543]
[1731749820079,1.11,3118.2,3118.1,38.0]
[1731749820247,1.11,3118.2,3118.1,41.20708]
[1731749821352,1.11,3118.2,3118.1,41.36732853]
[1731749821777,1.11,3118.2,3118.1,41.91732853]
[1731749821983,1.665,3118.2,3118.1,41.91732853]
[1731749823254,1.665,3118.2,3118.1,6.91732853]
[1731749823447,1.665,3118.2,3118.0,3.0]
[1731749823648,1.665,3118.2,3118.1,35.16024252]
[1731749823888,4.87207,3118.2,3117.6,0.31929145]
[1731749824060,5.42707,3118.2,3117.6,0.38361451]
[1731749824244,5.42707,3118.2,3117.7,35.0]
[1731749825284,2.22,3118.2,3117.8,3.0]
[1731749826360,2.775,3118.2,3117.8,3.0]
[1731749826748,3.20708,3118.1,3117.9,0.55]
[1731749826945,3.20725,3118.0,3117.7,35.0]
[1731749827849,5.98201,3118.2,3117.5,0.55]
[1731749827850,2.775,3118.2,3117.5,0.55]
[1731749828091,2.775,3118.2,3117.8,3.20736]
[1731749828253,2.775,3118.2,3117.7,3.75749]
[1731749828254,2.775,3118.2,3118.0,0.55]
[1731749828454,3.33,3118.2,3118.0,0.55]
[1731749830572,3.885,3118.2,3118.1,3.20708]
[1731749830891,3.885,3118.2,3118.1,0.55]
[1731749831267,3.2079,3117.3,3116.9,0.3206]
[1731749831603,3.20738,3117.8,3116.9,0.3206]
[1731749831758,3.20808,3117.2,3117.0,35.0]
[1731749832396,3.20819,3117.1,3116.9,0.3206]
[1731749832555,3.96481,3117.0,3116.9,0.3206]
[1731749832757,3.20852,3116.7,3116.6,2.01017917]
[1731749833065,3.20894,3116.3,3115.5,1.282665]
[1731749833266,3.20905,3116.2,3115.5,1.282665]
[1731749833455,0.7566,3116.1,3115.5,1.282665]
[1731749833659,0.7566,3116.1,3115.4,3.20984]
[1731749833859,0.7566,3115.9,3115.3,3.20996]
[1731749834061,0.7566,3115.9,3115.4,3.0]
[1731749834504,0.7566,3115.9,3115.5,6.20967]
[1731749834670,1.3116,3115.9,3115.5,3.0]
[1731749835198,1.3116,3115.9,3115.3,3.0]
[1731749835199,0.7712,3115.8,3115.3,3.0]
[1731749836409,0.7712,3115.8,3115.4,0.55]
[1731749836703,0.7712,3115.8,3115.4,6.75984]
[1731749836857,1.3262,3115.8,3115.4,6.75984]
[1731749837058,1.3262,3115.8,3115.4,3.55]
[1731749838070,0.555,3115.9,3115.8,6.21944]
[1731749838288,1.3262,3117.2,3116.6,0.55]
[1731749838465,1.3262,3117.2,3116.9,0.55]
[1731749839186,0.7712,3116.9,3116.3,0.55]
[1731749839401,0.7712,3116.7,3116.3,0.55]
[1731749839702,0.7712,3116.7,3116.4,35.0]
[1731749839874,0.7712,3116.5,3115.2,3.21001]
[1731749840077,0.7712,3116.1,3115.4,3.20978]
[1731749840450,0.7712,3116.1,3115.5,38.20975]
[1731749841001,0.7712,3116.1,3115.5,3.20975]
[1731749841213,1.3262,3116.1,3115.6,3.0]
[1731749841500,1.3262,3116.1,3115.5,3.0]
[1731749841671,1.3262,3116.1,3115.8,3.20942]
[1731749841876,1.3262,3116.1,3115.9,3.20929]
[1731749842600,1.3262,3116.1,3116.0,3.20924]
[1731749843502,1.8812,3116.1,3116.0,3.20924]
[1731749843800,1.11,3116.1,3116.0,3.75924]
[1731749845582,1.665,3116.1,3116.0,3.75924]
[1731749846365,1.665,3116.1,3116.0,6.75924]
[1731749846578,1.665,3116.1,3116.0,6.99707189]
[1731749847400,1.665,3116.1,3116.0,7.37754856]
[1731749847612,2.22,3116.1,3116.0,6.99707189]
[1731749847900,2.22,3116.1,3116.0,9.95618532]
[1731749848114,2.22,3116.1,3116.0,9.8920094]
[1731749848807,2.22,3116.1,3116.0,44.8920094]
[1731749849232,0.7712,3117.1,3116.0,41.6927694]
[1731749849501,1.11,3117.2,3117.1,0.55]
[1731749849674,1.11,3117.2,3117.1,3.75811]
[1731749851563,1.11,3117.2,3117.1,3.99605592]
[1731749851789,1.665,3117.2,3117.1,6.99605592]
[1731749852004,1.665,3117.2,3117.1,7.85620808]
[1731749852363,1.665,3117.2,3117.1,42.85620808]
[1731749852572,1.665,3117.2,3117.1,42.79205592]
[1731749853067,1.665,3117.2,3117.1,41.99605592]
[1731749854078,2.22,3117.2,3117.1,41.99605592]
[1731749854484,2.22,3117.2,3117.1,41.99624483]
[1731749855568,2.22,3117.2,3117.1,45.69718234]
[1731749855769,3.885,3118.2,3118.1,3.75708]
[1731749856208,3.885,3118.2,3118.1,6.82121624]
[1731749856408,4.44,3118.2,3118.1,7.05920823]
[1731749856715,4.44,3118.2,3118.1,41.99507199]
[1731749857383,5.2186,3118.2,3118.1,41.99507199]
[1731749857577,5.2186,3118.2,3118.1,35.55]
[1731749857813,5.74046,3118.2,3118.1,35.0]
[1731749858269,5.74046,3118.2,3117.9,3.2072]
[1731749858469,6.29546,3118.2,3117.9,3.2072]
[1731749859025,6.29546,3118.2,3117.8,35.0]
[1731749859026,5.51686,3118.2,3117.8,35.0]
[1731749859378,0.7786,3118.0,3117.3,3.2079]
[1731749859526,0.7786,3117.9,3117.4,35.0]
[1731749860160,0.7786,3117.9,3117.3,3.2079]
[1731749860460,0.8295,3117.7,3117.1,3.20808]
[1731749860664,0.8295,3117.7,3117.3,3.2079]
[1731749861574,0.8295,3117.7,3117.2,35.0]
[1731749861866,0.8295,3117.7,3117.3,3.20789]
[1731749862034,0.8295,3117.7,3117.2,35.0]
[1731749862242,0.8295,3117.7,3117.4,3.20779]
[1731749862443,0.555,3117.9,3117.6,3.20759]
[1731749862753,0.555,3117.9,3117.8,3.20738]
[1731749862935,1.11,3117.9,3117.8,3.20738]
[1731749863146,1.11,3117.9,3117.8,3.75738]
[1731749864172,1.11,3117.9,3117.8,3.9952972]
[1731749864569,1.11,3117.9,3117.8,3.75738]
[1731749864944,1.665,3117.9,3117.8,3.75738]
[1731749865473,1.665,3117.9,3117.6,3.20759]
[1731749865474,0.8295,3117.8,3117.6,3.20759]
[1731749865780,1.07895,3117.8,3117.2,35.0]
[1731749866434,0.8295,3117.8,3117.2,35.0]
[1731749866647,0.8295,3117.8,3117.5,3.20759]
[1731749866973,0.8295,3117.8,3117.6,3.20751]
[1731749867177,1.3845,3117.8,3117.6,3.20751]
[1731749867559,1.3845,3117.8,3117.7,3.20749]
[1731749868367,1.3845,3117.8,3117.7,3.75749]
[1731749869286,1.9395,3117.8,3117.7,3.75749]
[1731749871269,2.4945,3117.8,3117.7,3.75749]
[1731749872088,1.665,3117.8,3117.7,3.75749]
[1731749873357,2.22,3117.8,3117.7,3.75749]
[1731749874395,2.22,3117.8,3117.7,6.75749]
[1731749875615,2.775,3117.8,3117.7,41.75749]
[1731749876193,2.775,3117.8,3117.7,41.9177616]
[1731749877167,2.775,3117.8,3117.7,41.91775999]
[1731749877371,3.597,3117.8,3117.5,3.2076]
[1731749877554,4.152,3117.8,3117.6,6.20757]
[1731749877758,4.152,3117.8,3117.7,3.20749]
[1731749879807,4.707,3117.8,3117.7,3.20749]
[1731749881267,5.3442,3117.8,3117.2,3.75793]
[1731749881472,0.822,3117.7,3117.3,3.36818172]
[1731749881686,0.822,3117.7,3117.2,38.20793]
[1731749882006,0.822,3117.7,3117.3,3.20789]
[1731749882222,0.822,3117.7,3117.4,3.2078]
[1731749882773,0.822,3117.7,3117.6,3.20759]
[1731749883507,4.44,3117.8,3117.7,3.20749]
[1731749883868,4.995,3117.8,3117.7,3.20749]
[1731749884273,4.995,3117.8,3117.5,3.20762]
[1731749885004,4.995,3117.8,3117.6,3.20751]
[1731749885311,4.995,3117.8,3117.7,3.20749]
[1731749886211,5.55,3117.8,3117.7,3.20749]
[1731749887209,5.55,3117.8,3117.7,3.75749]
[1731749887712,5.55,3117.8,3117.7,3.91776904]
[1731749888006,5.55,3117.8,3117.7,3.75749]
[1731749888193,6.105,3117.8,3117.7,3.75749]
[1731749888381,6.105,3117.8,3117.7,3.91777001]
[1731749889115,6.105,3117.8,3117.7,3.75749]
[1731749889380,0.8006,3117.7,3117.6,3.0]
[1731749889697,0.8006,3117.7,3117.4,3.0]
[1731749889887,0.8006,3117.7,3117.6,3.0]
[1731749890295,1.3556,3117.7,3117.6,3.0]
[1731749891841,0.555,3117.7,3117.6,6.75759]
[1731749892140,0.555,3117.7,3117.6,3.0]
[1731749892448,0.8006,3117.6,3117.2,35.0]
[1731749893161,0.8006,3117.6,3117.3,3.20782]
[1731749894614,0.8006,3117.6,3117.2,35.0]
[1731749894615,1.3556,3117.6,3117.2,35.0]
[1731749894809,1.3556,3117.6,3117.2,38.20799]
[1731749895194,1.3556,3117.6,3117.3,3.2079]
[1731749895400,1.3556,3117.6,3117.4,3.20773]
[1731749895638,0.555,3117.6,3117.5,3.20769]
[1731749896515,1.11,3117.6,3117.5,6.20769]
[1731749897345,1.11,3117.6,3117.5,6.75769]
[1731749898244,1.11,3117.6,3117.5,41.75769]
[1731749898716,1.665,3117.6,3117.5,41.91797268]
[1731749899045,1.665,3117.6,3117.5,41.75769]
[1731749899341,1.665,3117.6,3117.5,41.91797128]
[1731749899702,1.665,3117.6,3117.5,41.75769]
[1731749900912,2.22,3117.6,3117.5,41.75769]
[1731749901121,2.22,3117.6,3117.5,38.55]
[1731749901605,2.22,3117.6,3117.5,41.75769]
[1731749901804,2.22,3117.6,3117.5,35.55]
[1731749902230,2.22,3117.6,3117.5,38.75769]
[1731749903105,2.775,3117.6,3117.5,38.75769]
[1731749903316,3.5807,3117.6,3117.5,35.0]
[1731749905117,4.1357,3117.6,3117.5,35.0]
[1731749907142,3.2079,3117.4,3117.1,0.3206]
[1731749907351,4.01367,3117.3,3117.1,0.3206]
[1731749907550,4.01367,3117.3,3116.9,0.3206]
[1731749908134,0.8057,3117.3,3116.9,0.3206]
[1731749908345,0.8057,3117.3,3117.1,0.3206]
[1731749909525,1.3607,3117.3,3117.1,0.3206]
[1731749911461,1.3607,3117.3,3117.0,3.20811]
[1731749911783,1.9157,3117.3,3117.0,3.20811]
[1731749913575,2.4707,3117.3,3117.0,3.20811]
[1731749915669,3.0257,3117.3,3117.0,3.20811]
[1731749916659,3.0257,3117.3,3117.2,3.208]
[1731749916860,2.22,3117.3,3117.1,3.20809]
[1731749917195,2.22,3117.3,3117.2,6.758]
[1731749917764,2.775,3117.3,3117.2,6.758]
[1731749918757,2.775,3117.3,3117.2,7.0784]
[1731749919188,2.775,3117.3,3117.2,6.758]
[1731749919783,2.775,3117.3,3117.2,7.30165982]
[1731749920532,3.33,3117.3,3117.2,6.91830351]
[1731749920817,3.33,3117.3,3117.2,6.758]
[1731749920981,3.33,3117.3,3117.2,6.91830474]
[1731749921418,3.33,3117.3,3117.2,7.23870474]
[1731749921786,3.33,3117.3,3117.2,7.62201387]
[1731749922431,3.33,3117.3,3117.2,7.6219618]
[1731749922657,3.885,3117.3,3117.2,7.6219618]
[1731749924333,3.885,3117.3,3117.2,7.2386905]
[1731749924538,3.885,3117.3,3117.2,7.62192561]
[1731749924745,4.44,3117.3,3117.2,7.62192561]
[1731749926341,4.44,3117.3,3117.2,7.8614437]
[1731749927001,4.995,3117.3,3117.2,7.8614437]
[1731749927503,4.995,3117.3,3117.2,7.8614366]
[1731749927931,4.995,3117.3,3117.2,7.5410366]
[1731749929121,5.55,3117.3,3117.2,7.5410366]
[1731749929711,5.55,3117.3,3117.2,7.8614366]
[1731749929914,5.55,3117.3,3117.2,8.6383366]
[1731749930154,5.55,3117.3,3117.2,12.05167887]
[1731749930513,4.91046814,3117.3,3117.2,12.05167887]
[1731749930961,4.91046814,3117.3,3117.2,12.0133366]
[1731749931163,5.46546814,3117.3,3117.2,12.0133366]
[1731749931468,0.65361814,3117.3,3117.2,12.0233366]
[1731749931622,8.14e-06,3117.3,3117.2,14.79159041]
[1731749932124,3.885,3117.6,3117.5,7.85499]
[1731749932324,3.885,3117.6,3117.5,11.59710887]
[1731749932552,3.885,3117.6,3117.5,11.57119005]
[1731749932752,3.885,3117.6,3117.5,11.53296411]
[1731749932948,3.885,3117.6,3117.5,11.53196279]
[1731749933165,3.885,3117.6,3117.5,11.57018873]
[1731749933464,4.44,3117.6,3117.5,11.53196279]
[1731749934469,4.44,3117.6,3117.5,11.53147438]
[1731749935442,4.995,3117.6,3117.5,11.53147438]
[1731749937440,5.55,3117.6,3117.5,11.53147438]
[1731749937839,5.55,3117.6,3117.5,11.37119098]
[1731749938046,5.55,3117.6,3117.5,11.53110006]
[1731749938555,5.55,3117.6,3117.5,11.58170006]
[1731749938727,5.55,3117.6,3117.5,4.30926255]
[1731749939537,6.105,3117.6,3117.5,4.30926255]
[1731749939942,6.105,3117.6,3117.5,4.85926255]
[1731749940143,6.105,3117.6,3117.5,7.85926255]
[1731749940467,6.914,3117.6,3117.5,3.82861275]
[1731749941072,6.914,3117.6,3117.5,3.98889614]
[1731749941242,6.914,3117.6,3117.5,3.82861275]
[1731749941446,6.914,3117.6,3117.5,4.14901275]
[1731749941642,7.469,3117.6,3117.5,4.69972148]
[1731749942666,7.469,3117.6,3117.5,7.69972148]
[1731749943382,6.66,3117.6,3117.5,7.69972148]
[1731749943544,7.215,3117.6,3117.5,7.85999781]
[1731749945873,7.77,3117.6,3117.5,8.68749781]
[1731749946081,7.77,3117.6,3117.5,8.72573457]
[1731749947380,7.77,3117.6,3117.5,8.68749781]
[1731749947940,7.77,3117.6,3117.5,8.72573457]
[1731749948261,8.325,3117.6,3117.5,8.68749781]
[1731749948844,8.325,3117.6,3117.5,9.33597181]
[1731749950262,8.88,3117.6,3117.5,9.33597181]
[1731749950475,8.88,3117.6,3117.5,9.33576521]
[1731749950769,8.88,3117.6,3117.5,9.5069122]
[1731749950945,8.88,3117.6,3117.5,9.50686505]
[1731749951283,8.88,3117.6,3117.5,9.46864902]
[1731749951445,8.88,3117.6,3117.5,9.50686505]
[1731749951971,8.88,3117.6,3117.5,8.50823879]
[1731749952476,9.435,3117.6,3117.5,8.8272714]
[1731749952681,9.435,3117.6,3117.5,8.50847225]
[1731749953196,9.435,3117.6,3117.5,7.85999825]
[1731749953885,9.435,3117.6,3117.5,7.86001819]
[1731749954607,9.99,3117.6,3117.5,7.86001819]
[1731749956283,9.99,3117.6,3117.5,8.17885747]
[1731749956651,10.545,3117.6,3117.5,8.17885747]
[1731749957047,10.545,3117.6,3117.5,8.01858762]
[1731749957252,10.545,3117.6,3117.5,7.23835402]
[1731749957480,10.545,3117.6,3117.5,7.86037433]
[1731749957964,10.545,3117.6,3117.5,42.86037433]
[1731749958383,10.545,3117.6,3117.5,42.89863016]
[1731749958695,10.545,3117.6,3117.5,42.86037433]
[1731749958895,11.1,3117.6,3117.5,42.86037433]
[1731749959058,11.1,3117.6,3117.5,42.89863016]
[1731749959556,11.1,3117.6,3117.5,43.67327433]
[1731749960378,11.1,3117.6,3117.5,43.67325874]
[1731749960784,11.1,3117.6,3117.5,43.29047701]
[1731749961001,11.655,3117.6,3117.5,43.67350645]
[1731749963079,12.21,3117.6,3117.5,43.7118034]
[1731749963285,12.21,3117.6,3117.5,42.8989034]
[1731749963999,12.21,3117.6,3117.5,42.86060645]
[1731749964164,12.21,3117.6,3117.5,42.8989034]
[1731749964366,12.21,3117.6,3117.5,42.31060645]
[1731749965162,12.765,3117.6,3117.5,42.31060645]
[1731749965770,12.765,3117.6,3117.5,42.86060645]
[1731749967094,12.765,3117.6,3117.5,42.70035802]
[1731749967262,13.32,3117.6,3117.5,42.8606404]
[1731749967771,13.32,3117.6,3117.5,7.8606404]
[1731749968195,13.32,3117.6,3117.5,42.8606404]
[1731749969417,13.32,3117.6,3117.5,42.3106404]
[1731749969724,13.875,3117.6,3117.5,42.3106404]
[1731749970529,13.875,3117.6,3117.5,42.15035802]
[1731749970809,13.875,3117.6,3117.5,42.31113685]
[1731749971009,13.875,3117.6,3117.5,42.15084752]
[1731749971224,13.875,3117.6,3117.5,42.3111316]
[1731749971509,13.875,3117.6,3117.5,7.3111316]
[1731749971682,14.43,3117.6,3117.5,7.3111316]
[1731749972473,14.43,3117.6,3117.5,7.8611316]
[1731749973922,14.985,3117.6,3117.5,7.8611316]
[1731749975525,14.985,3117.6,3117.5,42.8611316]
[1731749976036,15.54,3117.6,3117.5,42.8611316]
[1731749978099,16.095,3117.6,3117.5,42.8611316]
[1731749980203,16.65,3117.6,3117.5,42.8611316]
[1731749980905,16.65,3117.6,3117.5,42.23837408]
[1731749981199,16.65,3117.6,3117.5,42.62164572]
[1731749981432,16.65,3117.6,3117.5,42.46136164]
[1731749981743,16.65,3117.6,3117.5,42.65989961]
[1731749981953,16.65,3117.6,3117.5,43.38763115]
[1731749982109,16.65,3117.6,3117.5,42.62163115]
[1731749982439,17.205,3117.6,3117.5,42.6599266]
[1731749982611,17.205,3117.6,3117.5,42.62163115]
[1731749984632,17.76,3117.6,3117.5,42.07163115]
[1731749985145,17.76,3117.6,3117.5,42.0717794]
[1731749986747,18.315,3117.6,3117.5,42.0717794]
[1731749987122,19.0933,3117.6,3117.5,42.6217794]
[1731749987622,19.0933,3117.6,3117.5,7.6217794]
[1731749988004,18.315,3117.6,3117.5,42.6217794]
[1731749988212,18.315,3117.6,3117.5,43.95416171]
[1731749988405,18.315,3117.6,3117.5,44.75845716]
[1731749988608,18.315,3117.6,3117.5,44.72016171]
[1731749988859,18.87,3117.6,3117.5,44.72016171]
[1731749989553,18.87,3117.6,3117.5,44.75843264]
[1731749989868,18.87,3117.6,3117.5,44.72016171]
[1731749990160,18.87,3117.6,3117.5,44.75843264]
[1731749990658,18.87,3117.6,3117.5,46.05254402]
[1731749990859,19.425,3117.6,3117.5,46.05254402]
[1731749991022,19.425,3117.6,3117.5,47.16190038]
[1731749991223,19.425,3117.6,3117.5,47.16180659]
[1731749991541,19.425,3117.6,3117.5,46.05242729]
[1731749991854,19.425,3117.6,3117.5,47.16186126]
[1731749992056,18.87,3117.6,3117.5,50.53186126]
[1731749992230,11.406,3117.6,3117.5,47.17186126]
[1731749992434,11.406,3117.6,3117.5,52.21607617]
[1731749992622,3.412723,3117.6,3117.5,53.54826137]
[1731749992820,1.689873,3117.6,3117.5,53.54826137]
[1731749993017,1.05797201,3117.6,3117.5,53.54826137]
[1731749993220,1.05797201,3117.6,3117.5,52.21607617]
[1731749993429,1.05797201,3117.6,3117.5,53.5573097]
[1731749993652,2.01e-06,3117.6,3117.5,53.5573097]
[1731749994758,2.01e-06,3117.6,3117.5,53.39706313]
[1731749994993,2.01e-06,3117.6,3117.5,53.55729426]
[1731749995346,2.01e-06,3117.6,3117.5,53.55669859]
[1731749996549,0.42820201,3117.7,3117.6,10.44799]
[1731749996784,2.01e-06,3117.7,3117.6,14.53989611]
[1731749997092,0.92239858,3117.8,3117.7,7.87259]
[1731749997261,0.92239858,3117.8,3117.7,12.59433915]
[1731749997592,0.92239858,3117.8,3117.7,48.86258424]
[1731749997794,0.83939858,3117.8,3117.7,48.86258424]
[1731749997951,0.83939858,3117.8,3117.7,48.70235311]
[1731749998159,0.71959858,3117.8,3117.7,48.47924676]
[1731749998347,1.32938098,3117.9,3117.8,7.07778]
[1731749998682,1.32938098,3117.9,3117.8,11.16698335]
[1731749998993,1.32938098,3117.9,3117.8,46.16698335]
[1731749999201,1.72426672,3117.9,3117.8,46.16698335]
[1731749999367,1.72426672,3117.9,3117.8,49.53698335]
[1731749999765,1.72426672,3117.9,3117.8,49.53651015]
[1731750000574,1.72426672,3117.9,3117.8,47.87489913]
[1731750000757,1.72426672,3117.9,3117.8,47.87328529]
[1731750000951,1.72426672,3117.9,3117.8,46.22248]
[1731750001157,1.08326672,3117.9,3117.8,46.7653083]
[1731750001353,1.63826672,3117.9,3117.8,46.7653083]
[1731750001701,1.25916672,3117.9,3117.8,46.7653083]
[1731750002469,0.61996672,3117.9,3117.8,46.7653083]
[1731750002870,0.61996672,3117.9,3117.8,47.87296307]
[1731750003067,0.50148597,3117.9,3117.8,47.87296307]
[1731750003595,1.05648597,3117.9,3117.8,47.87296307]
[1731750003775,1.05648597,3117.9,3117.8,47.71274155]
[1731750003991,1.05648597,3117.9,3117.8,47.49035441]
[1731750004172,1.05648597,3117.9,3117.8,47.87289381]
[1731750004482,5.97e-06,3117.9,3117.8,47.87275454]
[1731750004690,4.44000597,3118.2,3118.1,3.20708]
[1731750004967,4.44000597,3118.2,3118.1,11.12383545]
[1731750005285,4.44000597,3118.2,3118.1,11.09649122]
[1731750005508,4.35690597,3118.2,3118.1,11.09649122]
[1731750005710,4.35690597,3118.2,3118.1,46.09649122]
[1731750006212,1.11,3118.9,3118.7,7.07686]
[1731750006412,1.11,3118.9,3118.7,9.01612278]
[1731750006620,1.11,3118.9,3118.7,8.95200135]
[1731750006907,1.11,3118.9,3118.7,8.96200135]
[1731750007092,1.11,3118.9,3118.7,43.9617252]
[1731750007476,1.11,3118.9,3118.7,43.99846247]
[1731750007686,1.665,3118.8,3118.7,43.99846247]
[1731750008084,1.665,3118.8,3118.7,43.99841138]
[1731750008711,1.665,3118.8,3118.7,39.06933233]
[1731750008913,1.665,3118.8,3118.7,35.38229711]
[1731750009087,1.665,3118.8,3118.7,38.58875711]
[1731750009283,1.665,3118.8,3118.7,38.20646]
[1731750009674,2.22,3118.8,3118.7,38.52686]
[1731750010106,2.22,3118.8,3118.7,42.07686]
[1731750011908,2.775,3118.8,3118.7,42.07686]
[1731750014054,3.33,3118.8,3118.7,0.8704]
[1731750014257,3.33,3118.8,3118.7,0.3204]
[1731750014549,3.33,3118.8,3118.7,38.3204]
[1731750015760,3.33,3118.8,3118.7,38.8704]
[1731750016144,3.885,3118.8,3118.7,38.8704]
[1731750016666,3.20658,3118.6,3118.3,0.3204]
[1731750016872,0.777,3118.5,3118.3,0.3204]
[1731750017021,3.20668,3118.5,3118.4,35.0]
[1731750017216,3.98368,3118.5,3118.4,35.0]
[1731750017515,0.777,3118.5,3118.0,0.3204]
[1731750017717,0.777,3118.4,3118.0,0.3204]
[1731750018037,0.777,3118.4,3118.2,0.8704]
[1731750018219,0.777,3118.4,3118.2,4.07737]
[1731750018220,1.332,3118.4,3118.2,4.07737]
[1731750018426,1.332,3118.4,3118.2,0.8704]
[1731750019129,1.332,3118.4,3118.2,3.8704]
[1731750019867,0.777,3118.3,3118.2,3.3204]
[1731750020231,0.777,3118.2,3118.1,0.8704]
[1731750020447,0.777,3118.2,3118.1,0.3204]
[1731750022275,1.332,3118.2,3118.1,0.3204]
[1731750022849,1.332,3118.2,3118.1,0.8704]
[1731750023780,1.332,3118.2,3118.1,7.07748]
[1731750024276,1.332,3118.2,3118.1,7.23772755]
[1731750024277,0.555,3118.2,3118.1,7.23772755]
[1731750024574,1.11,3118.2,3118.1,7.23772755]
[1731750025135,1.11,3118.2,3118.1,42.23772755]
[1731750026583,1.665,3118.2,3118.1,43.04532755]
[1731750026938,0.777,3119.8,3118.9,3.52658]
[1731750027235,0.777,3119.8,3118.8,0.55]
[1731750027236,0.777,3119.8,3119.4,7.07614]
[1731750027435,0.777,3120.1,3119.4,7.23636507]
[1731750028045,0.777,3120.1,3119.4,7.30047579]
[1731750028262,0.777,3120.1,3119.4,8.58164779]
[1731750028435,0.777,3120.1,3119.4,43.51753707]
[1731750028661,0.6975528,3119.5,3119.4,43.51753707]
[1731750030280,0.6975528,3119.5,3119.4,43.51746853]
[1731750030906,1.2525528,3119.5,3119.4,43.51746853]
[1731750031407,1.2525528,3119.5,3119.4,43.19706853]
[1731750032980,1.8075528,3119.5,3119.4,43.19706853]
[1731750034375,1.8075528,3119.5,3119.4,38.20574]
[1731750034600,1.8075528,3119.5,3119.4,35.0]
[1731750034968,3.1244528,3119.5,3119.4,35.0]
[1731750035199,3.43689808,3119.5,3119.4,35.0]
[1731750035469,3.43689808,3119.5,3119.1,3.20599]
[1731750035898,3.43689808,3119.5,3119.2,35.0]
[1731750036103,0.7619,3119.4,3119.2,35.0]
[1731750036521,0.7619,3119.3,3118.6,3.20655]
[1731750036724,0.7619,3119.1,3118.6,3.20655]
[1731750036932,0.7619,3119.1,3118.7,35.0]
[1731750037229,1.3169,3119.1,3118.7,35.0]
[1731750037845,1.3169,3119.1,3118.8,3.20633]
[1731750038133,1.3169,3119.1,3118.7,3.20636]
[1731750038292,1.3169,3119.1,3118.4,6.09111465]
[1731750038293,1.3169,3119.1,3118.6,3.0]
[1731750038494,1.3169,3119.1,3118.8,3.0]
[1731750039435,1.8719,3119.1,3118.8,3.0]
[1731750040331,1.8719,3119.1,3118.7,3.0]
[1731750041012,1.8719,3119.1,3118.7,6.20645]
[1731750041409,2.4269,3119.1,3118.7,6.20645]
[1731750042542,2.4269,3119.1,3118.8,3.20635]
[1731750042827,2.4269,3119.1,3118.9,3.23851177]
[1731750043031,2.4269,3119.1,3118.9,3.0]
[1731750043439,2.9819,3119.1,3118.9,3.0]
[1731750043931,2.9819,3119.1,3118.9,6.20618]
[1731750044139,2.9819,3119.1,3119.0,6.75615]
[1731750044297,2.9819,3119.1,3119.0,6.99464132]
[1731750044796,2.22,3119.1,3119.0,9.87907597]
[1731750045637,2.775,3119.1,3119.0,9.87907597]
[1731750046136,2.775,3119.1,3119.0,10.19947597]
[1731750046434,2.775,3119.1,3119.0,9.87907597]
[1731750047094,2.775,3119.1,3119.0,10.19947597]
[1731750047289,2.775,3119.1,3119.0,9.96098465]
[1731750047507,2.775,3119.1,3119.0,10.19946289]
[1731750047819,3.33,3119.1,3119.0,10.19946289]
[1731750048800,3.33,3119.1,3119.0,9.87906289]
[1731750049130,3.33,3119.1,3119.0,10.63336289]
[1731750049732,3.885,3119.1,3119.0,10.03925221]
[1731750049896,3.885,3119.1,3119.0,9.87906289]
[1731750051252,3.885,3119.1,3119.0,9.87921449]
[1731750051459,3.885,3119.1,3119.0,6.99346449]
[1731750051755,4.6606,3119.1,3119.0,0.55902984]
[1731750051960,5.2156,3119.1,3119.0,3.55902984]
[1731750052155,5.2156,3119.1,3119.0,9.64961449]
[1731750052448,4.44,3119.1,3119.0,9.64961449]
[1731750052824,4.44,3119.1,3119.0,10.19961449]
[1731750053540,4.44,3119.1,3119.0,10.35980904]
[1731750053995,4.995,3119.1,3119.0,10.1211792]
[1731750054262,4.995,3119.1,3119.0,9.96098465]
[1731750054469,4.995,3119.1,3119.0,10.36012929]
[1731750056169,5.55,3119.1,3119.0,10.36012929]
[1731750058362,6.105,3119.1,3119.0,10.36012929]
[1731750060525,6.66,3119.1,3119.0,10.36012929]
[1731750060731,6.66,3119.1,3119.0,7.47569464]
[1731750060965,6.66,3119.1,3119.0,7.315499]
[1731750061355,6.66,3119.1,3119.0,7.47570291]
[1731750061938,6.66,3119.1,3119.0,7.315499]
[1731750062140,6.66,3119.1,3119.0,7.4757046]
[1731750062488,6.66,3119.1,3119.0,7.47571102]
[1731750062630,7.215,3119.1,3119.0,7.47571102]
[1731750062977,7.215,3119.1,3119.0,7.47618393]
[1731750063130,7.215,3119.1,3119.0,7.47617377]
[1731750064977,7.77,3119.1,3119.0,7.47617377]
[1731750066589,7.77,3119.1,3119.0,6.92617446]